[Event "22nd ETCC Women 2019"]
[Site "Batumi"]
[Date "2019.10.27"]
[Round "4.30"]
[White "Movsesian, Julia"]
[Black "Guichard, Pauline"]
[Result "0-1"]
[ECO "C44"]
[WhiteElo "2307"]
[BlackElo "2407"]
[Annotator "NA"]
[PlyCount "60"]
[EventDate "2019.10.24"]
[EventType "team-tourn"]
[EventCountry "GEO"]
[SourceTitle "playchess.com"]
[Source "ChessBase"]
[SourceQuality "1"]
[WhiteTeam "Slovakia"]
[BlackTeam "France"]
[WhiteTeamCountry "SVK"]
[BlackTeamCountry "FRA"]
[TimeControl "40/5400+30:1800+30"]

1. e4 {[%emt 0:00:00]} e5 {[%emt 0:00:00]} 2. Nf3 {[%emt 0:00:00]} Nc6 {[%emt 0:00:00]} 3. g3 {[%emt 0:00:00]} Nf6 {[%emt 0:00:16]} 4. d3 {[%emt 0:00:04]} d5 {[%emt 0:01:20]} 5. exd5 {[%emt 0:00:09]} Nxd5 {[%emt 0:00:05]} 6. Bg2 {[%emt 0:00:26]} Bc5 {[%emt 0:04:51]} 7. O-O {[%emt 0:02:16]} O-O {[%emt 0:04:42]} 8. Nbd2 {[%emt 0:09:47]} Bg4 {[%emt 0:10:32]} 9. h3 {[%emt 0:01:27]} Bh5 {[%emt 0:00:31]} 10. Re1 {[%emt 0:03:30]} Re8 {[%emt 0:01:07]} 11. a3 {[%emt 0:01:11]} a5 {[%emt 0:02:56]} 12. Ne4 {[%emt 0:02:12]} Ba7 {[%emt 0:10:26]} 13. Bg5 {[%emt 0:09:39]} f6 {[%emt 0:07:04]} 14. c4 {[%emt 0:23:57]} fxg5 {[%emt 0:07:44]} 15. cxd5 {[%emt 0:01:47]} Qxd5 {[%emt 0:00:15]} 16. g4 {[%emt 0:02:18]} Bg6 {[%emt 0:05:03]} 17. Nfxg5 {[%emt 0:00:18]} Qb5 {[%emt 0:01:07]} 18. Qc2 {[%emt 0:13:24]} Rf8 {[%emt 0:07:32]} 19. Rf1 {[%emt 0:08:18]} Rae8 {[%emt 0:10:29]} 20. Nc3 {[%emt 0:05:11]} Qa6 {[%emt 0:08:00]} 21. Qb3+ {[%emt 0:03:37]} Kh8 {[%emt 0:00:09]} 22. Be4 {[%emt 0:03:39]} Nd4 {[%emt 0:01:52]} 23. Qd5 {[%emt 0:00:36]} Qf6 {[%emt 0:03:16]} 24. Qxb7 {[%emt 0:02:28]} Qxg5 {[%emt 0:06:43]} 25. Qxa7 {[%emt 0:00:10]} Qf4 26. Kg2 {[%emt 0:01:21]} Bxe4+ {[%emt 0:02:28]} 27. Nxe4 {[%emt 0:00:10]} Qf3+ {[%emt 0:00:46]} 28. Kh2 {[%emt 0:00:05]} Qxd3 {[%emt 0:01:15]} 29. Ng3 {[%emt 0:00:45]} Qc2 {[%emt 0:01:40]} 30. Kg2 {[%emt 0:00:53]} Qc6+ {[%emt 0:00:19]} 0-1

[Event "22nd ETCC Women 2019"]
[Site "Batumi"]
[Date "2019.10.27"]
[Round "4.31"]
[White "Skripchenko, Almira"]
[Black "Cibickova, Zuzana"]
[Result "1-0"]
[ECO "C55"]
[WhiteElo "2403"]
[BlackElo "2258"]
[Annotator "NA RC"]
[PlyCount "85"]
[EventDate "2019.10.24"]
[EventType "team-tourn"]
[EventCountry "GEO"]
[SourceTitle "playchess.com"]
[Source "ChessBase"]
[SourceQuality "1"]
[WhiteTeam "France"]
[BlackTeam "Slovakia"]
[WhiteTeamCountry "FRA"]
[BlackTeamCountry "SVK"]
[TimeControl "40/5400+30:1800+30"]

1. e4 {[%emt 0:00:00]} e5 {[%emt 0:00:00]} 2. Nf3 {[%emt 0:00:24]} Nc6 {[%emt 0:00:00]} 3. Bc4 {[%emt 0:00:17]} Nf6 {[%emt 0:00:05]} 4. d3 {[%emt 0:00:34]} Be7 {[%emt 0:00:12]} 5. O-O {[%emt 0:00:42]} O-O {[%emt 0:00:03]} 6. Re1 {[%emt 0:00:33]} d6 {[%emt 0:00:09]} 7. a3 {[%emt 0:00:44]} Na5 {[%emt 0:02:20]} 8. Ba2 {[%emt 0:00:14]} c5 {[%emt 0:00:50]} 9. b4 {[%emt 0:00:30]} Nc6 {[%emt 0:00:40]} 10. bxc5 {[%emt 0:00:18]} dxc5 {[%emt 0:00:08]} 11. h3 {[%emt 0:00:13]} Be6 {[%emt 0:08:12]} 12. Bxe6 {[%emt 0:04:49]} fxe6 {[%emt 0:00:02]} 13. Bb2 {[%emt 0:00:36]} Nd7 {[%emt 0:15:03]} 14. a4 {[%emt 0:03:52]} Nd4 {[%emt 0:08:50]} 15. Nbd2 {[%emt 0:02:34]} Rc8 {[%emt 0:02:11]} 16. Nh2 {[%emt 0:15:00]} Qc7 {[%emt 0:12:19]} 17. Ng4 {[%emt 0:10:44]} Bg5 {[%emt 0:04:06]} 18. Nc4 {[%emt 0:02:14]} Rf7 {[%emt 0:05:07]} 19. c3 {[%emt 0:08:47]} Nc6 {[%emt 0:00:06]} 20. Nh2 {[%emt 0:00:23]} Nb6 {[%emt 0:06:26]} 21. Qb3 {[%emt 0:03:27]} Nxc4 {[%emt 0:02:57]} 22. Qxc4 {[%emt 0:01:53]} Qd6 {[%emt 0:01:24]} 23. Nf3 {[%emt 0:12:20]} Na5 {[%emt 0:04:23]} 24. Qa2 {[%emt 0:00:40]} Bf4 {[%emt 0:10:22]} 25. Rad1 {[%emt 0:08:14]} c4 {[%emt 0:08:28]} 26. d4 {[%emt 0:10:02]} exd4 {[%emt 0:03:52]} 27. Rxd4 {[%emt 0:00:54]} Qb6 {[%emt 0:00:38]} 28. e5 {[%emt 0:01:20]} Qc7 {[%emt 0:03:47]} 29. Ba3 {[%emt 0:00:40]} Nb3 {[%emt 0:00:37]} 30. Bd6 {[%emt 0:00:45]} Qc6 {[%emt 0:00:44]} 31. Rdd1 {[%emt 0:00:40]} Bh6 {[%emt 0:00:12]} 32. Nd4 {[%emt 0:02:09]} Nxd4 {[%emt 0:00:01]} 33. Rxd4 {[%emt 0:00:06]} Rf4 {[%emt 0:00:04]} 34. Rxf4 {[%emt 0:00:30]} Bxf4 {[%emt 0:00:01]} 35. Qe2 {[%emt 0:00:17]} Bh6 {[%emt 0:02:13]} 36. Qg4 {[%emt 0:06:01]} Re8 {[%emt 0:00:27]} 37. Re4 {[%emt 0:01:00]} Qxa4 {[%emt 0:00:06]} 38. Rxc4 {[%emt 0:00:17]} Qb3 {[%emt 0:01:11]} 39. Rc7 {[%emt 0:00:26]} g6 {[%emt 0:00:40]} 40. Kh2 {[%emt 0:00:00]} Bg7 {[%emt 0:00:00]} 41. Qf3 {[%emt 0:05:19]} Kh8 {[%emt 0:05:04]} 42. Qf7 {[%emt 0:05:04]} Rg8 {[%emt 0:00:07]} 43. Bf8 {[%emt 0:00:44]} 1-0

[Event "22nd ETCC Women 2019"]
[Site "Batumi"]
[Date "2019.10.27"]
[Round "4.32"]
[White "Motycakova, Monika"]
[Black "Navrotescu, Andreea-Cristiana"]
[Result "0-1"]
[ECO "C03"]
[WhiteElo "2126"]
[BlackElo "2241"]
[Annotator "NA"]
[PlyCount "72"]
[EventDate "2019.10.24"]
[EventType "team-tourn"]
[EventCountry "GEO"]
[SourceTitle "playchess.com"]
[Source "ChessBase"]
[SourceQuality "1"]
[WhiteTeam "Slovakia"]
[BlackTeam "France"]
[WhiteTeamCountry "SVK"]
[BlackTeamCountry "FRA"]
[TimeControl "40/5400+30:1800+30"]

1. e4 {[%emt 0:00:00]} e6 {[%emt 0:00:00]} 2. d4 {[%emt 0:00:00]} d5 {[%emt 0:00:00]} 3. Nd2 {[%emt 0:00:00]} Be7 {[%emt 0:00:00]} 4. e5 {[%emt 0:05:04]} Nh6 {[%emt 0:00:00]} 5. Bd3 {[%emt 0:03:31]} c5 {[%emt 0:00:25]} 6. c3 {[%emt 0:01:45]} Nc6 {[%emt 0:00:22]} 7. Ne2 {[%emt 0:02:40]} Nf5 {[%emt 0:01:57]} 8. Nf3 {[%emt 0:02:48]} O-O {[%emt 0:04:00]} 9. O-O {[%emt 0:04:29]} cxd4 {[%emt 0:04:30]} 10. cxd4 {[%emt 0:01:47]} f6 {[%emt 0:02:12]} 11. Bd2 {[%emt 0:26:13]} fxe5 {[%emt 0:03:26]} 12. dxe5 {[%emt 0:02:16]} Qb6 {[%emt 0:02:49]} 13. Bc3 {[%emt 0:06:08]} Kh8 {[%emt 0:12:18]} 14. Qa4 {[%emt 0:02:29]} d4 {[%emt 0:19:59]} 15. Bxf5 {[%emt 0:12:26]} dxc3 {[%emt 0:00:17]} 16. Be4 {[%emt 0:04:34]} Bd7 {[%emt 0:09:34]} 17. Nxc3 {[%emt 0:11:47]} Nxe5 {[%emt 0:04:55]} 18. Qc2 {[%emt 0:00:11]} Nxf3+ {[%emt 0:01:22]} 19. Bxf3 {[%emt 0:00:05]} Rxf3 {[%emt 0:11:58]} 20. gxf3 {[%emt 0:00:27]} Rf8 {[%emt 0:00:05]} 21. Kg2 {[%emt 0:02:54]} Qc5 {[%emt 0:01:10]} 22. Qd3 {[%emt 0:06:59]} Bc6 {[%emt 0:01:01]} 23. Ne4 {[%emt 0:00:18]} Qh5 {[%emt 0:00:14]} 24. Rfe1 {[%emt 0:00:34]} Bd8 {[%emt 0:01:53]} 25. Re3 {[%emt 0:00:31]} Bb6 {[%emt 0:01:41]} 26. Rae1 {[%emt 0:01:08]} Bxe3 {[%emt 0:00:55]} 27. Rxe3 {[%emt 0:00:32]} Qg6+ {[%emt 0:02:32]} 28. Kf1 {[%emt 0:01:32]} a6 {[%emt 0:01:49]} 29. Ke1 {[%emt 0:00:42]} Qg1+ {[%emt 0:01:24]} 30. Qf1 {[%emt 0:00:35]} Qxh2 {[%emt 0:00:19]} 31. Qd3 {[%emt 0:00:27]} Qh4 {[%emt 0:01:30]} 32. Ng3 {[%emt 0:00:29]} Rd8 {[%emt 0:01:02]} 33. Qc3 {[%emt 0:00:07]} Bb5 {[%emt 0:03:03]} 34. Rxe6 {[%emt 0:00:48]} Qh2 {[%emt 0:00:27]} 35. Nf1 {[%emt 0:00:36]} Bxf1 {[%emt 0:02:14]} 36. Qd4 {[%emt 0:00:33]} Rg8 {[%emt 0:01:05]} 0-1

[Event "22nd ETCC Women 2019"]
[Site "Batumi"]
[Date "2019.10.27"]
[Round "4.33"]
[White "Batsiashvili, Nino"]
[Black "Tsolakidou, Stavroula"]
[Result "1/2-1/2"]
[ECO "A17"]
[WhiteElo "2422"]
[BlackElo "2431"]
[Annotator "NA"]
[PlyCount "236"]
[EventDate "2019.10.24"]
[EventType "team-tourn"]
[EventCountry "GEO"]
[SourceTitle "playchess.com"]
[Source "ChessBase"]
[SourceQuality "1"]
[WhiteTeam "Georgia"]
[BlackTeam "Greece"]
[WhiteTeamCountry "GEO"]
[BlackTeamCountry "GRE"]
[TimeControl "40/5400+30:1800+30"]

1. Nf3 {[%emt 0:00:00]} Nf6 {[%emt 0:00:00]} 2. c4 {[%emt 0:00:00]} e6 {[%emt 0:00:00]} 3. Nc3 {[%emt 0:00:00]} Bb4 {[%emt 0:00:18]} 4. Qc2 {[%emt 0:00:00]} O-O {[%emt 0:01:15]} 5. a3 {[%emt 0:00:00]} Bxc3 {[%emt 0:01:00]} 6. Qxc3 {[%emt 0:00:00]} b6 {[%emt 0:01:26]} 7. b4 {[%emt 0:02:06]} Ne4 {[%emt 0:05:55]} 8. Qc2 {[%emt 0:04:43]} f5 {[%emt 0:00:06]} 9. d3 {[%emt 0:09:37]} Nf6 {[%emt 0:00:05]} 10. e4 {[%emt 0:04:56]} d6 {[%emt 0:10:02]} 11. Bb2 {[%emt 0:04:29]} c5 {[%emt 0:13:23]} 12. exf5 {[%emt 0:11:37]} e5 {[%emt 0:15:50]} 13. Nh4 {[%emt 0:02:45]} Nc6 {[%emt 0:00:27]} 14. g3 {[%emt 0:04:31]} Bd7 {[%emt 0:07:42]} 15. Bg2 {[%emt 0:01:09]} Rc8 {[%emt 0:08:58]} 16. O-O {[%emt 0:01:41]} Ng4 {[%emt 0:03:59]} 17. Rae1 {[%emt 0:06:38]} Nh6 {[%emt 0:01:52]} 18. f4 {[%emt 0:01:05]} Nxf5 {[%emt 0:07:40]} 19. Nxf5 {[%emt 0:05:02]} Bxf5 {[%emt 0:00:05]} 20. fxe5 {[%emt 0:02:30]} dxe5 {[%emt 0:08:17]} 21. Bd5+ {[%emt 0:00:41]} Kh8 {[%emt 0:00:03]} 22. bxc5 {[%emt 0:09:54]} bxc5 {[%emt 0:00:16]} 23. Bxe5 {[%emt 0:05:58]} Nxe5 {[%emt 0:00:57]} 24. Rxe5 {[%emt 0:00:03]} Bg6 {[%emt 0:00:28]} 25. Ree1 {[%emt 0:03:50]} Rxf1+ {[%emt 0:01:53]} 26. Rxf1 {[%emt 0:00:06]} Qe7 {[%emt 0:00:44]} 27. Qd2 {[%emt 0:03:05]} Re8 {[%emt 0:01:04]} 28. Bc6 {[%emt 0:04:47]} Rd8 {[%emt 0:01:43]} 29. Re1 {[%emt 0:02:02]} Qf6 {[%emt 0:03:29]} 30. Bd5 {[%emt 0:05:09]} Rf8 {[%emt 0:01:06]} 31. Be4 {[%emt 0:02:12]} Bxe4 {[%emt 0:04:30]} 32. dxe4 {[%emt 0:00:03]} Qe5 {[%emt 0:00:23]} 33. Rf1 {[%emt 0:02:32]} Re8 {[%emt 0:00:49]} 34. Qd5 {[%emt 0:00:53]} Qc7 {[%emt 0:00:42]} 35. e5 {[%emt 0:00:20]} h6 {[%emt 0:00:18]} 36. e6 {[%emt 0:01:19]} Qe7 {[%emt 0:00:36]} 37. Re1 {[%emt 0:00:53]} Rd8 {[%emt 0:00:16]} 38. Qe5 {[%emt 0:00:20]} Re8 {[%emt 0:00:49]} 39. a4 {[%emt 0:00:34]} Kg8 {[%emt 0:00:25]} 40. a5 {[%emt 0:00:00]} a6 {[%emt 0:00:00]} 41. Qd5 {[%emt 0:08:57]} Rd8 {[%emt 0:02:17]} 42. Qc6 {[%emt 0:01:07]} Rd2 {[%emt 0:11:15]} 43. Qxa6 {[%emt 0:06:37]} Qf8 {[%emt 0:02:19]} 44. Rf1 {[%emt 0:00:11]} Qd8 {[%emt 0:00:13]} 45. Qb7 {[%emt 0:03:32]} Qd4+ {[%emt 0:04:06]} 46. Kh1 {[%emt 0:00:01]} Qxc4 {[%emt 0:05:21]} 47. Qf7+ {[%emt 0:01:13]} Kh7 {[%emt 0:00:11]} 48. Qf5+ {[%emt 0:00:47]} Kh8 {[%emt 0:00:24]} 49. Rf2 {[%emt 0:08:19]} Rxf2 {[%emt 0:02:51]} 50. Qxf2 {[%emt 0:00:01]} Qd5+ {[%emt 0:00:31]} 51. Kg1 {[%emt 0:00:04]} Qd1+ {[%emt 0:00:18]} 52. Kg2 {[%emt 0:00:18]} Qd5+ {[%emt 0:00:38]} 53. Qf3 {[%emt 0:00:06]} Qa2+ {[%emt 0:02:42]} 54. Kf1 {[%emt 0:01:26]} Qxe6 {[%emt 0:01:22]} 55. Qf8+ {[%emt 0:00:08]} Kh7 {[%emt 0:00:05]} 56. Qxc5 {[%emt 0:00:12]} Qa6+ {[%emt 0:01:09]} 57. Kf2 {[%emt 0:00:23]} Qf6+ {[%emt 0:00:17]} 58. Kg2 {[%emt 0:01:19]} Qb2+ {[%emt 0:00:26]} 59. Kh3 {[%emt 0:00:21]} Qe2 {[%emt 0:00:32]} 60. Qf5+ {[%emt 0:01:26]} Kh8 {[%emt 0:00:21]} 61. Qd5 {[%emt 0:01:28]} Qf1+ {[%emt 0:00:36]} 62. Kg4 {[%emt 0:00:13]} Qe2+ {[%emt 0:00:29]} 63. Kf4 {[%emt 0:00:33]} Qf2+ {[%emt 0:01:02]} 64. Ke5 {[%emt 0:00:21]} Qe2+ {[%emt 0:01:13]} 65. Kd6 {[%emt 0:03:29]} Qxh2 {[%emt 0:02:24]} 66. Qd3 {[%emt 0:01:08]} Qf2 {[%emt 0:00:21]} 67. a6 {[%emt 0:00:53]} Qb6+ {[%emt 0:00:08]} 68. Ke5 {[%emt 0:00:49]} Qf6+ {[%emt 0:00:40]} 69. Kd5 {[%emt 0:00:10]} Qd8+ {[%emt 0:00:52]} 70. Ke4 {[%emt 0:00:13]} Qb6 {[%emt 0:00:31]} 71. Qc4 {[%emt 0:00:18]} Kh7 {[%emt 0:00:28]} 72. Kf3 {[%emt 0:00:21]} Qf6+ {[%emt 0:00:33]} 73. Ke3 {[%emt 0:00:05]} Qb6+ {[%emt 0:00:12]} 74. Kf3 {[%emt 0:00:21]} Qf6+ {[%emt 0:00:16]} 75. Kg2 {[%emt 0:00:26]} Qb2+ {[%emt 0:00:24]} 76. Kh3 {[%emt 0:00:09]} Qf2 {[%emt 0:01:09]} 77. Qe4+ {[%emt 0:02:13]} Kh8 {[%emt 0:00:16]} 78. Qf4 {[%emt 0:00:46]} Qb6 {[%emt 0:00:36]} 79. Qf8+ {[%emt 0:00:30]} Kh7 {[%emt 0:00:01]} 80. Qf5+ {[%emt 0:00:10]} Kh8 {[%emt 0:00:19]} 81. Qc8+ {[%emt 0:00:07]} Kh7 {[%emt 0:00:03]} 82. Qc2+ {[%emt 0:00:14]} Kh8 {[%emt 0:00:18]} 83. Qa2 {[%emt 0:00:01]} Qa7 {[%emt 0:00:45]} 84. Qa5 {[%emt 0:00:52]} Qd7+ {[%emt 0:00:31]} 85. Kh2 {[%emt 0:00:03]} Qa7 {[%emt 0:00:16]} 86. Qa2 {[%emt 0:00:51]} Kh7 {[%emt 0:00:32]} 87. Kg2 {[%emt 0:01:04]} Qa8+ {[%emt 0:00:07]} 88. Kg1 {[%emt 0:00:30]} Qa7+ {[%emt 0:00:26]} 89. Kf1 {[%emt 0:00:05]} Kh8 {[%emt 0:00:22]} 90. Qe6 {[%emt 0:00:29]} Qd4 {[%emt 0:00:55]} 91. Qa2 {[%emt 0:00:32]} Qa7 {[%emt 0:00:50]} 92. Qa3 {[%emt 0:00:59]} Kh7 {[%emt 0:00:15]} 93. Qd3+ {[%emt 0:00:49]} Kh8 {[%emt 0:00:06]} 94. Kg2 {[%emt 0:00:38]} Qa8+ {[%emt 0:00:13]} 95. Kg1 {[%emt 0:00:24]} Qa7+ {[%emt 0:00:05]} 96. Kf1 {[%emt 0:00:06]} Qf7+ {[%emt 0:00:15]} 97. Kg2 {[%emt 0:00:09]} Qa7 {[%emt 0:00:29]} 98. Qc4 {[%emt 0:00:20]} Qe3 {[%emt 0:00:54]} 99. Qc8+ {[%emt 0:00:28]} Kh7 {[%emt 0:00:05]} 100. Qf5+ {[%emt 0:00:07]} Kh8 {[%emt 0:00:30]} 101. Qf2 {[%emt 0:00:18]} Qe4+ {[%emt 0:01:28]} 102. Kh2 {[%emt 0:00:01]} Qd5 {[%emt 0:01:44]} 103. Qe2 {[%emt 0:02:06]} Qc5 {[%emt 0:00:49]} 104. Qe8+ {[%emt 0:00:55]} Kh7 {[%emt 0:00:05]} 105. Qe4+ {[%emt 0:00:05]} Kh8 {[%emt 0:00:04]} 106. Qe2 {[%emt 0:00:50]} Qa7 {[%emt 0:00:20]} 107. Kg2 {[%emt 0:00:30]} Qa8+ {[%emt 0:00:13]} 108. Kf2 {[%emt 0:00:11]} Qa7+ {[%emt 0:00:14]} 109. Kf1 {[%emt 0:00:04]} Qf7+ {[%emt 0:00:39]} 110. Ke1 {[%emt 0:00:12]} Qa7 {[%emt 0:00:25]} 111. Qd3 {[%emt 0:00:33]} Qe7+ {[%emt 0:00:33]} 112. Kd1 {[%emt 0:00:17]} Qa7 {[%emt 0:00:11]} 113. Kc2 {[%emt 0:00:22]} Qc5+ {[%emt 0:02:02]} 114. Kb3 {[%emt 0:00:26]} Qb6+ {[%emt 0:00:31]} 115. Ka4 {[%emt 0:00:13]} Qc6+ {[%emt 0:00:08]} 116. Qb5 {[%emt 0:00:29]} Qc2+ {[%emt 0:00:13]} 117. Kb4 {[%emt 0:00:38]} Qd2+ {[%emt 0:00:16]} 118. Kc5 {[%emt 0:00:14]} Qe3+ {[%emt 0:00:03]} 1/2-1/2

[Event "22nd ETCC Women 2019"]
[Site "Batumi"]
[Date "2019.10.27"]
[Round "4.34"]
[White "Avramidou, Anastasia"]
[Black "Khomeriki, Nino"]
[Result "1/2-1/2"]
[ECO "E21"]
[WhiteElo "2247"]
[BlackElo "2315"]
[Annotator "NA"]
[PlyCount "258"]
[EventDate "2019.10.24"]
[EventType "team-tourn"]
[EventCountry "GEO"]
[SourceTitle "playchess.com"]
[Source "ChessBase"]
[SourceQuality "1"]
[WhiteTeam "Greece"]
[BlackTeam "Georgia"]
[WhiteTeamCountry "GRE"]
[BlackTeamCountry "GEO"]
[TimeControl "40/5400+30:1800+30"]

1. d4 {[%emt 0:00:00]} Nf6 {[%emt 0:00:01]} 2. c4 {[%emt 0:00:00]} e6 {[%emt 0:00:06]} 3. Nc3 {[%emt 0:00:00]} Bb4 {[%emt 0:00:09]} 4. Nf3 {[%emt 0:01:10]} d5 {[%emt 0:00:22]} 5. g3 {[%emt 0:00:17]} dxc4 {[%emt 0:04:07]} 6. Bg2 {[%emt 0:04:54]} c6 {[%emt 0:03:30]} 7. O-O {[%emt 0:03:57]} b5 {[%emt 0:09:30]} 8. Qc2 {[%emt 0:08:09]} a5 {[%emt 0:07:32]} 9. a4 {[%emt 0:11:59]} Ba6 {[%emt 0:14:51]} 10. Ne5 {[%emt 0:08:59]} Nd5 {[%emt 0:02:41]} 11. axb5 {[%emt 0:07:51]} cxb5 {[%emt 0:16:38]} 12. Nxd5 {[%emt 0:08:58]} exd5 {[%emt 0:00:40]} 13. Nxf7 {[%emt 0:00:12]} Kxf7 {[%emt 0:00:07]} 14. Qf5+ {[%emt 0:00:05]} Ke8 {[%emt 0:00:08]} 15. Bxd5 {[%emt 0:00:06]} Ra7 {[%emt 0:02:16]} 16. Bg5 {[%emt 0:00:12]} Qb6 {[%emt 0:05:56]} 17. Qe5+ {[%emt 0:02:28]} Be7 {[%emt 0:03:30]} 18. Ra3 {[%emt 0:03:55]} h6 {[%emt 0:03:37]} 19. Bf4 {[%emt 0:17:31]} Nd7 {[%emt 0:03:59]} 20. Qxg7 {[%emt 0:00:07]} Rf8 {[%emt 0:07:28]} 21. Re3 {[%emt 0:00:37]} Qf6 {[%emt 0:00:12]} 22. Qg4 {[%emt 0:01:10]} Kd8 {[%emt 0:06:10]} 23. Be6 {[%emt 0:11:29]} Bc8 {[%emt 0:00:15]} 24. d5 {[%emt 0:03:34]} Ra6 {[%emt 0:00:09]} 25. Rf3 {[%emt 0:01:50]} Qxb2 {[%emt 0:01:56]} 26. d6 {[%emt 0:00:24]} Bxd6 {[%emt 0:01:55]} 27. Bxd6 {[%emt 0:00:21]} Rxd6 {[%emt 0:00:03]} 28. Rxf8+ {[%emt 0:00:07]} Nxf8 {[%emt 0:00:03]} 29. Bxc8 {[%emt 0:00:06]} Qd4 {[%emt 0:05:12]} 30. Qf5 {[%emt 0:02:09]} Rf6 {[%emt 0:00:14]} 31. Qxb5 {[%emt 0:00:41]} Kxc8 {[%emt 0:00:32]} 32. Rc1 {[%emt 0:01:19]} Qxf2+ {[%emt 0:00:29]} 33. Kh1 {[%emt 0:00:03]} Nd7 {[%emt 0:00:07]} 34. Rxc4+ {[%emt 0:00:51]} Kd8 {[%emt 0:00:04]} 35. Qxa5+ {[%emt 0:00:04]} Nb6 {[%emt 0:01:53]} 36. Qd2+ {[%emt 0:00:56]} Nd7 {[%emt 0:01:01]} 37. Qa5+ {[%emt 0:00:09]} Rb6 {[%emt 0:00:33]} 38. Qa8+ {[%emt 0:01:11]} Rb8 {[%emt 0:00:08]} 39. Qa5+ {[%emt 0:00:06]} Rb6 {[%emt 0:00:01]} 40. Qa8+ {[%emt 0:00:00]} Ke7 {[%emt 0:00:00]} 41. Qa3+ {[%emt 0:08:56]} Kd8 {[%emt 0:13:55]} 42. Qa8+ {[%emt 0:02:01]} Rb8 {[%emt 0:00:04]} 43. Qa5+ {[%emt 0:00:50]} Qb6 {[%emt 0:00:00]} 44. Qxb6+ Rxb6 {[%emt 0:00:00]} 45. Kg2 {[%emt 0:02:25]} Ke7 {[%emt 0:00:00]} 46. g4 {[%emt 0:06:48]} Ke6 {[%emt 0:00:49]} 47. Kg3 {[%emt 0:02:05]} Ne5 {[%emt 0:00:39]} 48. Ra4 {[%emt 0:01:17]} Ng6 {[%emt 0:01:03]} 49. Ra3 {[%emt 0:02:11]} Kf6 {[%emt 0:00:55]} 50. Rf3+ {[%emt 0:00:34]} Ke5 {[%emt 0:00:15]} 51. Re3+ {[%emt 0:05:26]} Kd4 {[%emt 0:00:18]} 52. Rd3+ {[%emt 0:00:04]} Ke4 {[%emt 0:00:12]} 53. Ra3 {[%emt 0:00:04]} Ne5 {[%emt 0:01:24]} 54. Kh4 {[%emt 0:01:09]} Kf4 {[%emt 0:03:04]} 55. Ra4+ {[%emt 0:00:19]} Ke3 {[%emt 0:00:02]} 56. g5 {[%emt 0:01:36]} Nf7 {[%emt 0:02:04]} 57. gxh6 {[%emt 0:00:17]} Rxh6+ {[%emt 0:00:40]} 58. Kg3 {[%emt 0:00:22]} Nd6 {[%emt 0:00:47]} 59. Ra3+ {[%emt 0:01:05]} Kxe2 {[%emt 0:00:15]} 60. Ra2+ {[%emt 0:00:04]} Ke3 {[%emt 0:00:07]} 61. Ra3+ {[%emt 0:00:05]} Ke4 {[%emt 0:00:11]} 62. Ra4+ {[%emt 0:00:13]} Ke5 {[%emt 0:00:36]} 63. Ra5+ {[%emt 0:00:08]} Kf6 {[%emt 0:00:21]} 64. Ra6 {[%emt 0:02:51]} Kg5 {[%emt 0:00:16]} 65. h4+ {[%emt 0:00:55]} Kf5 {[%emt 0:00:04]} 66. Ra5+ {[%emt 0:00:28]} Kf6 {[%emt 0:00:07]} 67. Kg4 {[%emt 0:00:30]} Rh8 {[%emt 0:01:00]} 68. Ra6 {[%emt 0:01:05]} Rg8+ {[%emt 0:00:17]} 69. Kf4 {[%emt 0:00:05]} Rd8 {[%emt 0:00:04]} 70. Kg4 {[%emt 0:00:11]} Kg7 {[%emt 0:00:05]} 71. Ra7+ {[%emt 0:00:19]} Nf7 {[%emt 0:00:05]} 72. Ra4 {[%emt 0:00:20]} Rd5 {[%emt 0:00:20]} 73. Ra7 {[%emt 0:01:03]} Rd6 {[%emt 0:00:27]} 74. Ra4 {[%emt 0:01:12]} Nh6+ {[%emt 0:00:12]} 75. Kg3 {[%emt 0:00:41]} Kg6 {[%emt 0:00:07]} 76. Rb4 {[%emt 0:01:35]} Ra6 {[%emt 0:00:30]} 77. Rb5 {[%emt 0:00:24]} Ra3+ {[%emt 0:00:21]} 78. Kf4 {[%emt 0:00:34]} Ra4+ {[%emt 0:00:03]} 79. Ke5 {[%emt 0:00:11]} Rxh4 {[%emt 0:00:04]} 80. Rb6+ {[%emt 0:00:40]} Kg5 {[%emt 0:00:06]} 81. Rb8 {[%emt 0:00:17]} Rh1 {[%emt 0:00:09]} 82. Rb4 {[%emt 0:00:30]} Ng4+ {[%emt 0:00:16]} 83. Ke6 {[%emt 0:00:48]} Re1+ {[%emt 0:00:17]} 84. Kd6 {[%emt 0:00:09]} Nf6 {[%emt 0:00:16]} 85. Rb5+ {[%emt 0:00:08]} Kf4 {[%emt 0:00:16]} 86. Rb4+ {[%emt 0:00:47]} Ne4+ {[%emt 0:00:07]} 87. Ke6 {[%emt 0:00:13]} Rc1 {[%emt 0:00:27]} 88. Ra4 {[%emt 0:00:39]} Rc5 {[%emt 0:00:11]} 89. Ra1 {[%emt 0:00:37]} Re5+ {[%emt 0:01:56]} 90. Kd7 {[%emt 0:00:05]} Rb5 {[%emt 0:00:31]} 91. Ke6 {[%emt 0:00:26]} Rb6+ {[%emt 0:00:59]} 92. Kd5 {[%emt 0:01:07]} Rd6+ {[%emt 0:00:03]} 93. Kc4 {[%emt 0:00:05]} Rd8 {[%emt 0:00:03]} 94. Ra7 {[%emt 0:00:50]} Nd2+ {[%emt 0:00:34]} 95. Kc3 {[%emt 0:00:05]} Ke3 {[%emt 0:00:05]} 96. Re7+ {[%emt 0:00:44]} Ne4+ {[%emt 0:02:15]} 97. Kc4 {[%emt 0:00:05]} Rd4+ {[%emt 0:00:21]} 98. Kb5 {[%emt 0:00:05]} Kd3 {[%emt 0:00:45]} 99. Re6 {[%emt 0:01:49]} Nc3+ {[%emt 0:00:33]} 100. Kc5 {[%emt 0:00:25]} Rd5+ {[%emt 0:00:04]} 101. Kc6 {[%emt 0:00:07]} Kc4 {[%emt 0:00:09]} 102. Rd6 {[%emt 0:00:36]} Re5 {[%emt 0:00:19]} 103. Rd2 {[%emt 0:01:00]} Ra5 {[%emt 0:00:50]} 104. Kd7 {[%emt 0:00:19]} Ne4 {[%emt 0:00:38]} 105. Rd1 {[%emt 0:00:29]} Ra6 {[%emt 0:00:52]} 106. Ke7 {[%emt 0:00:05]} Nc3 {[%emt 0:00:18]} 107. Rd6 {[%emt 0:00:55]} Ra7+ {[%emt 0:00:39]} 108. Ke6 {[%emt 0:00:15]} Rh7 {[%emt 0:00:13]} 109. Rd2 {[%emt 0:00:53]} Ne4 {[%emt 0:00:12]} 110. Rd8 {[%emt 0:00:38]} Rh5 {[%emt 0:00:12]} 111. Rd1 {[%emt 0:00:16]} Nc5+ {[%emt 0:00:33]} 112. Kf6 {[%emt 0:00:16]} Nd3 {[%emt 0:00:08]} 113. Rg1 {[%emt 0:00:24]} Nf2 {[%emt 0:00:49]} 114. Rg2 {[%emt 0:01:15]} Ne4+ {[%emt 0:00:19]} 115. Ke6 {[%emt 0:00:03]} Kd4 {[%emt 0:00:09]} 116. Ra2 {[%emt 0:00:31]} Re5+ {[%emt 0:00:26]} 117. Kf7 {[%emt 0:00:28]} Rf5+ {[%emt 0:00:15]} 118. Ke6 {[%emt 0:00:24]} Rf6+ {[%emt 0:00:06]} 119. Ke7 {[%emt 0:00:06]} Rc6 {[%emt 0:00:51]} 120. Rh2 {[%emt 0:00:55]} Ng5 {[%emt 0:00:39]} 121. Rh5 {[%emt 0:00:33]} Nf3 {[%emt 0:00:17]} 122. Ra5 {[%emt 0:00:26]} Ne5 {[%emt 0:00:18]} 123. Ra4+ {[%emt 0:00:27]} Kd5 {[%emt 0:00:06]} 124. Ra5+ {[%emt 0:00:04]} Ke4 {[%emt 0:00:04]} 125. Ra1 {[%emt 0:00:24]} Nd3 {[%emt 0:00:10]} 126. Rh1 {[%emt 0:00:27]} Kd5 {[%emt 0:00:50]} 127. Rd1 {[%emt 0:00:06]} Ke4 {[%emt 0:00:09]} 128. Rh1 {[%emt 0:00:05]} Ne5 {[%emt 0:00:05]} 129. Re1+ {[%emt 0:00:09]} Kd4 {[%emt 0:00:12]} 1/2-1/2